fUST/lending_fUST_20251006
["ID","MTS","AMOUNT","RATE_DAILY","PERIOD"]
[389538333,1759705843453,-1313.55,0.00016712,2]
[389538334,1759705843462,-500.0,0.00016712,2]
[389538335,1759705843471,-379.11,0.00016712,2]
[389538336,1759705843481,-500.0,0.00016712,2]
[389538337,1759705843491,-500.0,0.00016712,2]
[389538338,1759705843500,-500.0,0.00016712,2]
[389538339,1759705843509,-553.27703503,0.00016712,2]
[389538340,1759705843519,-1089.97,0.00016712,2]
[389538341,1759705843528,-500.0,0.00016712,2]
[389538342,1759705843537,-702.03,0.00016712,2]
[389538343,1759705843546,-500.0,0.00016712,2]
[389538344,1759705843555,-500.0,0.00016712,2]
[389538345,1759705843564,-500.0,0.00016712,2]
[389538346,1759705843574,-595.35,0.00016712,2]
[389538347,1759705843583,-500.0,0.00016712,2]
[389538348,1759705843592,-722.19,0.00016712,2]
[389538349,1759705843601,-500.0,0.00016712,2]
[389538350,1759705843611,-500.0,0.00016712,2]
[389538351,1759705843620,-500.0,0.00016712,2]
[389538352,1759705843629,-500.0,0.00016712,2]
[389538353,1759705843638,-500.0,0.00016712,2]
[389538354,1759705843648,-561.33,0.00016712,2]
[389538355,1759705843657,-500.0,0.00016712,2]
[389538356,1759705843667,-528.60478509,0.00016712,2]
[389538357,1759705843676,-500.0,0.00016712,2]
[389538358,1759705843686,-500.0,0.00016712,2]
[389538359,1759705843695,-680.42,0.00016712,2]
[389538360,1759705843704,-500.0,0.00016712,2]
[389538361,1759705843713,-639.95631878,0.00016712,2]
[389538362,1759705843723,-500.0,0.00016712,2]
[389538363,1759705843732,-500.0,0.00016712,2]
[389538364,1759705843741,-1175.06,0.00016712,2]
[389538365,1759705843750,-500.0,0.00016712,2]
[389538366,1759705843760,-500.0,0.00016712,2]
[389538367,1759705843769,-500.0,0.00016712,2]
[389538368,1759705843779,-632.87,0.00016712,2]
[389538369,1759705843788,-500.0,0.00016712,2]
[389538370,1759705843802,-500.0,0.00016712,2]
[389538371,1759705843811,-500.0,0.00016712,2]
[389538372,1759705843820,-500.0,0.00016712,2]
[389538373,1759705843829,-500.0,0.00016712,2]
[389538374,1759705843839,-500.0,0.00016712,2]
[389538375,1759705843850,-500.0,0.00016712,2]
[389538376,1759705843859,-500.0,0.00016712,2]
[389538377,1759705843870,-500.0,0.00016712,2]
[389538378,1759705843881,-500.0,0.00016712,2]
[389538379,1759705843891,-1189.0,0.00016712,2]
[389538380,1759705843901,-561.15140565,0.00016712,2]
[389538381,1759705843910,-500.0,0.00016712,2]
[389538382,1759705843922,-8912.09,0.00016712,2]
[389538383,1759705843931,-500.0,0.00016712,2]
[389538384,1759705843941,-520.41,0.00016712,2]
[389538385,1759705843950,-500.0,0.00016712,2]
[389538386,1759705843959,-500.0,0.00016712,2]
[389538387,1759705843968,-2968.23,0.00016712,2]
[389538388,1759705843978,-500.0,0.00016712,2]
[389538389,1759705843987,-500.0,0.00016712,2]
[389538390,1759705843996,-1675.7,0.00016712,2]
[389538391,1759705844005,-193.54318782,0.00016712,2]
[389538392,1759705844016,-6817.73,0.00016712,2]
[389538393,1759705844025,-500.0,0.00016712,2]
[389538394,1759705844035,-3638.84,0.00016712,2]
[389538395,1759705844045,-500.0,0.00016712,2]
[389538396,1759705844055,-500.0,0.00016712,2]
[389538397,1759705844064,-500.0,0.00016712,2]
[389538398,1759705844074,-640.66,0.00016712,2]
[389538399,1759705844083,-632.16,0.00016712,2]
[389538400,1759705844093,-500.0,0.00016712,2]
[389538401,1759705844102,-1161.24,0.00016712,2]
[389538402,1759705844111,-513.85,0.00016712,2]
[389538403,1759705844120,-500.0,0.00016712,2]
[389538404,1759705844129,-500.0,0.00016712,2]
[389538405,1759705844139,-2284.57,0.00016712,2]
[389538406,1759705844148,-9970.0,0.00016712,2]
[389538407,1759705844157,-500.0,0.00016712,2]
[389538408,1759705844166,-668.53,0.00016712,2]
[389538409,1759705844175,-570.01,0.00016712,2]
[389538410,1759705844184,-924.87,0.00016712,2]
[389538411,1759705844193,-500.0,0.00016712,2]
[389538412,1759705844203,-1146.16,0.00016712,2]
[389538413,1759705844212,-500.0,0.00016712,2]
[389538414,1759705844221,-609.39,0.00016712,2]
[389538415,1759705844230,-500.0,0.00016712,2]
[389538416,1759705844239,-1894.56,0.00016712,2]
[389538417,1759705844248,-500.0,0.00016712,2]
[389538418,1759705844258,-2974.64,0.00016712,2]
[389538419,1759705844267,-500.0,0.00016712,2]
[389538420,1759705844276,-564.25,0.00016712,2]
[389538421,1759705844285,-500.0,0.00016712,2]
[389538422,1759705844294,-500.0,0.00016712,2]
[389538423,1759705844304,-500.0,0.00016712,2]
[389538424,1759705844315,-2526.54,0.00016712,2]
[389538425,1759705844325,-500.0,0.00016712,2]
[389538426,1759705844335,-500.0,0.00016712,2]
[389538427,1759705844344,-732.81,0.00016712,2]
[389538428,1759705844353,-500.0,0.00016712,2]
[389538429,1759705844362,-500.0,0.00016712,2]
[389538430,1759705844372,-500.0,0.00016712,2]
[389538431,1759705844381,-500.0,0.00016712,2]
[389538432,1759705844390,-3467.79,0.00016712,2]
[389538433,1759705844399,-500.0,0.00016712,2]
[389538434,1759705844408,-490.20991956,0.00016712,2]
[389538435,1759705844417,-500.0,0.00016712,2]
[389538436,1759705844427,-500.0,0.00016712,2]
[389538437,1759705844436,-506.24,0.00016712,2]
[389538438,1759705844446,-500.0,0.00016712,2]
[389538439,1759705844455,-500.0,0.00016712,2]
[389538440,1759705844464,-500.0,0.00016712,2]
[389538441,1759705844473,-746.65,0.00016712,2]
[389538442,1759705844482,-976.36,0.00016712,2]
[389538443,1759705844493,-711.04,0.00016712,2]
[389538444,1759705844503,-751.27,0.00016712,2]
[389538445,1759705844513,-1602.39,0.00016712,2]
[389538446,1759705844524,-500.0,0.00016712,2]
[389538447,1759705844533,-3309.79,0.00016712,2]
[389538448,1759705844542,-818.06,0.00016712,2]
[389538449,1759705844552,-500.0,0.00016712,2]
[389538450,1759705844561,-500.0,0.00016712,2]
[389538451,1759705844571,-1432.31,0.00016712,2]
[389538452,1759705844580,-500.0,0.00016712,2]
[389538453,1759705844589,-743.67,0.00016712,2]
[389538454,1759705844598,-500.0,0.00016712,2]
[389538455,1759705844608,-500.0,0.00016712,2]
[389538456,1759705844618,-169.45845256,0.00016712,2]
[389538457,1759705844627,-500.0,0.00016712,2]
[389538458,1759705844636,-500.0,0.00016712,2]
[389538459,1759705844645,-500.0,0.00016712,2]
[389538460,1759705844655,-500.0,0.00016712,2]
[389538461,1759705844664,-2019.94,0.00016712,2]
[389538462,1759705844674,-500.0,0.00016712,2]
[389538463,1759705844683,-586.04,0.00016712,2]
[389538464,1759705844692,-706.38,0.00016712,2]
[389538465,1759705844702,-1187.5,0.00016712,2]
[389538466,1759705844711,-525.9,0.00016712,2]
[389538467,1759705844720,-379.9797483,0.00016712,2]
[389538468,1759705844730,-500.0,0.00016712,2]
[389538469,1759705844739,-714.3,0.00016712,2]
[389538470,1759705844749,-8105.41,0.00016712,2]
[389538471,1759705844758,-872.9,0.00016712,2]
[389538472,1759705844767,-500.0,0.00016712,2]
[389538473,1759705844777,-1229.68,0.00016712,2]
[389538474,1759705844787,-500.0,0.00016712,2]
[389538475,1759705844801,-500.0,0.00016712,2]
[389538476,1759705844811,-500.0,0.00016712,2]
[389538477,1759705844821,-500.0,0.00016712,2]
[389538478,1759705844830,-168.73530937,0.00016712,2]
[389538479,1759705844840,-500.0,0.00016712,2]
[389538480,1759705844850,-500.0,0.00016712,2]
[389538481,1759705844859,-4700.42,0.00016712,2]
[389538482,1759705844870,-870.06,0.00016712,2]
[389538483,1759705844879,-500.0,0.00016712,2]
[389538484,1759705844888,-1113.67,0.00016712,2]
[389538485,1759705844898,-500.0,0.00016712,2]
[389538486,1759705844907,-324.0,0.00016736,2]
[389538487,1759705844916,-220.51,0.00016736,2]
[389538488,1759705844925,-300.0,0.00016766,2]
[389538489,1759705844935,-300.0,0.00016766,2]
[389538490,1759705844945,-300.0,0.00016766,2]
[389538491,1759705844954,-300.0,0.00016766,2]
[389538492,1759705844963,-300.0,0.00016766,2]
[389538493,1759705844972,-300.0,0.00016766,2]
[389538494,1759705844981,-300.0,0.00016766,2]
[389538495,1759705844990,-300.0,0.00016766,2]
[389538496,1759705845000,-300.0,0.00016766,2]
[389538497,1759705845009,-300.0,0.00016766,2]
[389538498,1759705845019,-300.0,0.00016766,2]
[389538499,1759705845028,-300.0,0.00016766,2]
[389538500,1759705845037,-300.0,0.00016766,2]
[389538501,1759705845047,-300.0,0.00016766,2]
[389538502,1759705845056,-300.0,0.00016766,2]
[389538503,1759705845065,-600.0,0.00016766,2]
[389538504,1759705845074,-200.42,0.00016936,2]
[389538505,1759705845084,-19292.2273969,0.00016976,2]
[389538506,1759705845093,-500.0,0.00016986,2]
[389538507,1759705845103,-500.0,0.00016986,2]
[389538508,1759705845112,-500.0,0.00016986,2]
[389538509,1759705845121,-500.0,0.00016986,2]
[389538510,1759705845131,-500.0,0.00016986,2]
[389538511,1759705845141,-500.0,0.00016986,2]
[389538512,1759705845150,-500.0,0.00016986,2]
[389538513,1759705845159,-500.0,0.00016986,2]
[389538514,1759705845168,-1313.55,0.00016986,2]
[389538515,1759705845178,-205.90082544,0.00016986,2]
[389538516,1759705845187,-500.0,0.00016986,2]
[389538517,1759705845196,-1089.97,0.00016986,2]
[389538518,1759705845206,-702.03,0.00016986,2]
[389538519,1759705845216,-500.0,0.00016986,2]
[389538520,1759705845226,-500.0,0.00016986,2]
[389538521,1759705845235,-595.35,0.00016986,2]
[389538522,1759705845244,-722.19,0.00016986,2]
[389538523,1759705845253,-500.0,0.00016986,2]
[389538524,1759705845263,-500.0,0.00016986,2]
[389538525,1759705845272,-205.76792015,0.00016986,2]
[389538526,1759705845282,-500.0,0.00016986,2]
[389538527,1759705845292,-561.33,0.00016986,2]
[389538528,1759705845301,-500.0,0.00016986,2]
[389538529,1759705845310,-500.0,0.00016986,2]
[389538531,1759705845320,-500.0,0.00016986,2]
[389538532,1759705845330,-680.42,0.00016986,2]
[389538533,1759705845339,-500.0,0.00016986,2]
[389538534,1759705845348,-1175.06,0.00016986,2]
[389538535,1759705845357,-500.0,0.00016986,2]
[389538536,1759705845367,-632.87,0.00016986,2]
[389538537,1759705845376,-500.0,0.00016986,2]
[389538538,1759705845388,-500.0,0.00016986,2]
[389538539,1759705845398,-500.0,0.00016986,2]
[389538540,1759705845407,-500.0,0.00016986,2]
[389538541,1759705845418,-500.0,0.00016986,2]
[389538542,1759705845428,-500.0,0.00016986,2]
[389538543,1759705845439,-500.0,0.00016986,2]
[389538544,1759705845448,-500.0,0.00016986,2]
[389538545,1759705845457,-500.0,0.00016986,2]
[389538547,1759705845466,-1189.0,0.00016986,2]
[389538548,1759705845476,-8912.09,0.00016986,2]
[389538549,1759705845485,-500.0,0.00016986,2]
[389538550,1759705845494,-520.41,0.00016986,2]
[389538551,1759705845503,-500.0,0.00016986,2]
[389538552,1759705845513,-500.0,0.00016986,2]
[389538553,1759705845522,-2968.23,0.00016986,2]
[389538554,1759705845531,-500.0,0.00016986,2]
[389538555,1759705845540,-500.0,0.00016986,2]
[389538556,1759705845549,-1675.7,0.00016986,2]
[389538557,1759705845558,-6817.73,0.00016986,2]
[389538558,1759705845568,-500.0,0.00016986,2]
[389538559,1759705845578,-3638.84,0.00016986,2]
[389538560,1759705845587,-500.0,0.00016986,2]
[389538561,1759705845596,-640.66,0.00016986,2]
[389538562,1759705845606,-632.16,0.00016986,2]
[389538563,1759705845616,-500.0,0.00016986,2]
[389538564,1759705845625,-1161.24,0.00016986,2]
[389538565,1759705845634,-513.85,0.00016986,2]
[389538566,1759705845644,-500.0,0.00016986,2]
[389538567,1759705845653,-9970.0,0.00016986,2]
[389538568,1759705845663,-2284.57,0.00016986,2]
[389538569,1759705845672,-500.0,0.00016986,2]
[389538570,1759705845681,-668.53,0.00016986,2]
[389538571,1759705845691,-570.01,0.00016986,2]
[389538572,1759705845700,-151.0,0.00016986,2]
[389538573,1759705845709,-924.87,0.00016986,2]
[389538574,1759705845719,-500.0,0.00016986,2]
[389538575,1759705845728,-192.923229,0.00016986,2]
[389538576,1759705845737,-1146.16,0.00016986,2]
[389538577,1759705845747,-609.39,0.00016986,2]
[389538578,1759705845756,-500.0,0.00016986,2]
[389538580,1759705845767,-1894.56,0.00016986,2]
[389538581,1759705845776,-500.0,0.00016986,2]
[389538582,1759705845785,-151.0,0.00016986,2]
[389538583,1759705845797,-2974.64,0.00016986,2]
[389538584,1759705845806,-500.0,0.00016986,2]
[389538585,1759705845816,-564.25,0.00016986,2]
[389538586,1759705845825,-500.0,0.00016986,2]
[389538587,1759705845835,-500.0,0.00016986,2]
[389538588,1759705845844,-547.70238883,0.00016986,2]
[389538589,1759705845853,-2526.54,0.00016986,2]
[389538590,1759705845862,-500.0,0.00016986,2]
[389538591,1759705845874,-500.0,0.00016986,2]
[389538592,1759705845884,-500.0,0.00016986,2]
[389538594,1759705845894,-732.81,0.00016986,2]
[389538596,1759705845904,-151.0,0.00016986,2]
[389538597,1759705845913,-500.0,0.00016986,2]
[389538598,1759705845922,-500.0,0.00016986,2]
[389538599,1759705845934,-500.0,0.00016986,2]
[389538600,1759705845944,-3467.79,0.00016986,2]
[389538601,1759705845954,-151.0,0.00016986,2]
[389538602,1759705845965,-151.0,0.00016986,2]
[389538603,1759705845974,-500.0,0.00016986,2]
[389538604,1759705845983,-500.0,0.00016986,2]
[389538605,1759705845994,-500.0,0.00016986,2]
[389538606,1759705846003,-506.24,0.00016986,2]
[389538607,1759705846013,-500.0,0.00016986,2]
[389538608,1759705846023,-151.0,0.00016986,2]
[389538609,1759705846034,-500.0,0.00016986,2]
[389538610,1759705846044,-746.65,0.00016986,2]
[389538611,1759705846054,-151.0,0.00016986,2]
[389538612,1759705846063,-151.0,0.00016986,2]
[389538613,1759705846072,-976.36,0.00016986,2]
[389538614,1759705846082,-151.0,0.00016986,2]
[389538615,1759705846091,-711.04,0.00016986,2]
[389538616,1759705846100,-751.27,0.00016986,2]
[389538617,1759705846109,-1602.39,0.00016986,2]
[389538618,1759705846118,-151.0,0.00016986,2]
[389538619,1759705846127,-500.0,0.00016986,2]
[389538620,1759705846137,-151.0,0.00016986,2]
[389538621,1759705846146,-151.0,0.00016986,2]
[389538622,1759705846155,-3309.79,0.00016986,2]
[389538623,1759705846164,-818.06,0.00016986,2]
[389538624,1759705846174,-500.0,0.00016986,2]
[389538625,1759705846185,-500.0,0.00016986,2]
[389538627,1759705846194,-1432.31,0.00016986,2]
[389538629,1759705846203,-743.67,0.00016986,2]
[389538630,1759705846212,-151.0,0.00016986,2]
[389538632,1759705846221,-500.0,0.00016986,2]
[389538633,1759705846230,-500.0,0.00016986,2]
[389538634,1759705846241,-500.0,0.00016986,2]
[389538635,1759705846253,-500.0,0.00016986,2]
[389538636,1759705846263,-2019.94,0.00016986,2]
[389538637,1759705846272,-500.0,0.00016986,2]
[389538638,1759705846281,-1414.056115,0.00016986,2]
[389538639,1759705846291,-1414.056115,0.00016986,2]
[389538640,1759705846301,-1414.056115,0.00016986,2]
[389538641,1759705846457,-1414.056115,0.00016986,2]
[389538642,1759705846468,-706.38,0.00016986,2]
[389538643,1759705846480,-1187.5,0.00016986,2]
[389538644,1759705846489,-151.0,0.00016986,2]
[389538645,1759705846499,-208.321682,0.00016986,2]
[389538646,1759705846510,-525.9,0.00016986,2]
[389538647,1759705846520,-500.0,0.00016986,2]
[389538648,1759705846529,-714.3,0.00016986,2]
[389538649,1759705846538,-8105.41,0.00016986,2]
[389538650,1759705846547,-872.9,0.00016986,2]
[389538651,1759705846557,-500.0,0.00016986,2]
[389538652,1759705846566,-1229.68,0.00016986,2]
[389538653,1759705846575,-500.0,0.00016986,2]
[389538654,1759705846584,-500.0,0.00016986,2]
[389538655,1759705846593,-500.0,0.00016986,2]
[389538656,1759705846602,-500.0,0.00016986,2]
[389538657,1759705846611,-500.0,0.00016986,2]
[389538658,1759705846620,-4700.42,0.00016986,2]
[389538659,1759705846629,-870.06,0.00016986,2]
[389538660,1759705846637,-500.0,0.00016986,2]
[389538661,1759705846647,-1113.67,0.00016986,2]
[389538662,1759705846658,-500.0,0.00016986,2]
[389538663,1759705846668,-543.09602212,0.0001699,2]
[389538664,1759705846679,-295.0,0.00017023,2]
[389538665,1759705846688,-1128.19219473,0.00017059,2]
[389538666,1759705846697,-348.0,0.00017136,2]
[389538667,1759705846706,-362.0,0.0001716,2]
[389538668,1759705846716,-980.0,0.00017181,2]
[389538669,1759705846725,-2158.0,0.00017181,2]
[389538670,1759705846734,-630.0,0.00017181,2]
[389538671,1759705846743,-500.0,0.0001726,2]
[389538672,1759705846752,-500.0,0.0001726,2]
[389538673,1759705846761,-597.65,0.0001726,2]
[389538674,1759705846771,-500.0,0.0001726,2]
[389538675,1759705846780,-500.0,0.0001726,2]
[389538676,1759705846789,-638.13829945,0.0001726,2]
[389538677,1759705846802,-500.0,0.0001726,2]
[389538678,1759705846811,-500.0,0.0001726,2]
[389538679,1759705846821,-500.0,0.0001726,2]
[389538680,1759705846830,-1313.55,0.0001726,2]
[389538681,1759705846841,-225.73414,0.0001726,2]
[389538682,1759705846850,-500.0,0.0001726,2]
[389538683,1759705846859,-1089.97,0.0001726,2]
[389538684,1759705846871,-702.03,0.0001726,2]
[389538685,1759705846881,-500.0,0.0001726,2]
[389538686,1759705846890,-500.0,0.0001726,2]
[389538687,1759705846899,-595.35,0.0001726,2]
[389538688,1759705846908,-722.19,0.0001726,2]
[389538689,1759705846918,-500.0,0.0001726,2]
[389538690,1759705846927,-500.0,0.0001726,2]
[389538691,1759705846936,-151.0,0.0001726,2]
[389538692,1759705846945,-500.0,0.0001726,2]
[389538693,1759705846955,-561.33,0.0001726,2]
[389538694,1759705846963,-500.0,0.0001726,2]
[389538695,1759705846973,-500.0,0.0001726,2]
[389538696,1759705846982,-500.0,0.0001726,2]
[389538697,1759705846991,-680.42,0.0001726,2]
[389538698,1759705847001,-151.0,0.0001726,2]
[389538699,1759705847010,-500.0,0.0001726,2]
[389538700,1759705847019,-1175.06,0.0001726,2]
[389538701,1759705847028,-500.0,0.0001726,2]
[389538702,1759705847038,-151.0,0.0001726,2]
[389538703,1759705847047,-632.87,0.0001726,2]
[389538704,1759705847057,-500.0,0.0001726,2]
[389538705,1759705847067,-500.0,0.0001726,2]
[389538706,1759705847076,-500.0,0.0001726,2]
[389538707,1759705847085,-500.0,0.0001726,2]
[389538708,1759705847096,-500.0,0.0001726,2]
[389538709,1759705847106,-500.0,0.0001726,2]
[389538710,1759705847116,-500.0,0.0001726,2]
[389538711,1759705847125,-500.0,0.0001726,2]
[389538712,1759705847134,-1189.0,0.0001726,2]
[389538713,1759705847143,-8912.09,0.0001726,2]
[389538714,1759705847152,-500.0,0.0001726,2]
[389538715,1759705847162,-520.41,0.0001726,2]
[389538716,1759705847172,-500.0,0.0001726,2]
[389538717,1759705847181,-500.0,0.0001726,2]
[389538718,1759705847191,-2968.23,0.0001726,2]
[389538719,1759705847201,-500.0,0.0001726,2]
[389538720,1759705847211,-500.0,0.0001726,2]
[389538721,1759705847220,-1675.7,0.0001726,2]
[389538722,1759705847229,-6817.73,0.0001726,2]
[389538723,1759705847239,-500.0,0.0001726,2]
[389538724,1759705847249,-3638.84,0.0001726,2]
[389538725,1759705847258,-151.0,0.0001726,2]
[389538726,1759705847268,-500.0,0.0001726,2]
[389538727,1759705847279,-640.66,0.0001726,2]
[389538728,1759705847289,-151.0,0.0001726,2]
[389538729,1759705847298,-632.16,0.0001726,2]
[389538730,1759705847309,-500.0,0.0001726,2]
[389538731,1759705847321,-1161.24,0.0001726,2]
[389538732,1759705847330,-513.85,0.0001726,2]
[389538733,1759705847340,-500.0,0.0001726,2]
[389538734,1759705847349,-9970.0,0.0001726,2]
[389538735,1759705847360,-2284.57,0.0001726,2]
[389538736,1759705847370,-500.0,0.0001726,2]
[389538737,1759705847379,-668.53,0.0001726,2]
[389538738,1759705847389,-570.01,0.0001726,2]
[389538739,1759705847398,-924.87,0.0001726,2]
[389538740,1759705847407,-500.0,0.0001726,2]
[389538741,1759705847416,-1146.16,0.0001726,2]
[389538742,1759705847426,-609.39,0.0001726,2]
[389538743,1759705847435,-500.0,0.0001726,2]
[389538744,1759705847444,-1894.56,0.0001726,2]
[389538745,1759705847454,-327.38402587,0.0001726,2]
[389538746,1759705847463,-2974.64,0.0001726,2]
[389538747,1759705847472,-500.0,0.0001726,2]
[389538748,1759705847482,-564.25,0.0001726,2]
[389538749,1759705847491,-500.0,0.0001726,2]
[389538750,1759705847500,-500.0,0.0001726,2]
[389538751,1759705847510,-2526.54,0.0001726,2]
[389538752,1759705847520,-500.0,0.0001726,2]
[389538753,1759705847530,-373.33773106,0.0001726,2]
[389538754,1759705847540,-219.00228454,0.0001726,2]
[389538755,1759705847549,-732.81,0.0001726,2]
[389538756,1759705847558,-500.0,0.0001726,2]
[389538757,1759705847567,-500.0,0.0001726,2]
[389538758,1759705847576,-500.0,0.0001726,2]
[389538759,1759705847586,-3467.79,0.0001726,2]
[389538760,1759705847595,-500.0,0.0001726,2]
[389538761,1759705847604,-500.0,0.0001726,2]
[389538762,1759705847615,-506.24,0.0001726,2]
[389538763,1759705847624,-500.0,0.0001726,2]
[389538764,1759705847636,-553.9,0.0001726,2]
[389538765,1759705847646,-746.65,0.0001726,2]
[389538766,1759705847657,-976.36,0.0001726,2]
[389538767,1759705847666,-711.04,0.0001726,2]
[389538768,1759705847676,-751.27,0.0001726,2]
[389538769,1759705847686,-1602.39,0.0001726,2]
[389538770,1759705847696,-500.0,0.0001726,2]
[389538771,1759705847706,-3309.79,0.0001726,2]
[389538772,1759705847715,-818.06,0.0001726,2]
[389538773,1759705847725,-500.0,0.0001726,2]
[389538774,1759705847733,-1432.31,0.0001726,2]
[389538775,1759705847742,-743.67,0.0001726,2]
[389538776,1759705847752,-500.0,0.0001726,2]
[389538777,1759705847762,-500.0,0.0001726,2]
[389538778,1759705847771,-500.0,0.0001726,2]
[389538779,1759705847780,-500.0,0.0001726,2]
[389538780,1759705847790,-2019.94,0.0001726,2]
[389538781,1759705847803,-500.0,0.0001726,2]
[389538782,1759705847812,-706.38,0.0001726,2]
[389538783,1759705847821,-1187.5,0.0001726,2]
[389538784,1759705847831,-525.9,0.0001726,2]
[389538785,1759705847840,-500.0,0.0001726,2]
[389538786,1759705847849,-714.3,0.0001726,2]
[389538787,1759705847858,-8105.41,0.0001726,2]
[389538788,1759705847870,-872.9,0.0001726,2]
[389538789,1759705847881,-500.0,0.0001726,2]
[389538790,1759705847890,-1229.68,0.0001726,2]
[389538791,1759705847899,-500.0,0.0001726,2]
[389538792,1759705847908,-500.0,0.0001726,2]
[389538793,1759705847918,-500.0,0.0001726,2]
[389538794,1759705847927,-4700.42,0.0001726,2]
[389538795,1759705847936,-870.06,0.0001726,2]
[389538796,1759705847946,-500.0,0.0001726,2]
[389538797,1759705847955,-1113.67,0.0001726,2]
[389538798,1759705847964,-1128.19219473,0.00017506,2]
[389538799,1759705847973,-151.0,0.00017524,2]
[389538800,1759705847982,-151.0,0.00017524,2]
[389538801,1759705847992,-151.0,0.00017524,2]
[389538802,1759705848001,-151.0,0.00017524,2]
[389538803,1759705848011,-151.0,0.00017524,2]
[389538804,1759705848020,-151.0,0.00017524,2]
[389538805,1759705848029,-1414.056115,0.00017524,2]
[389538806,1759705848038,-1414.056115,0.00017524,2]
[389538807,1759705848048,-1414.056115,0.00017524,2]
[389538808,1759705848058,-1414.056115,0.00017524,2]
[389538809,1759705848068,-20006.03981059,0.00017524,2]
[389538810,1759705848077,-500.0,0.00017534,2]
[389538811,1759705848086,-500.0,0.00017534,2]
[389538812,1759705848096,-151.0,0.00017534,2]
[389538813,1759705848105,-269.98146398,0.00017534,2]
[389538814,1759705848115,-500.0,0.00017534,2]
[389538815,1759705848125,-204.687075,0.00017534,2]
[389538816,1759705848134,-500.0,0.00017534,2]
[389538817,1759705848143,-259.104704,0.00017534,2]
[389538818,1759705848153,-500.0,0.00017534,2]
[389538819,1759705848162,-500.0,0.00017534,2]
[389538820,1759705848172,-1313.55,0.00017534,2]
[389538821,1759705848181,-500.0,0.00017534,2]
[389538822,1759705848190,-1089.97,0.00017534,2]
[389538823,1759705848199,-702.03,0.00017534,2]
[389538824,1759705848209,-500.0,0.00017534,2]
[389538825,1759705848218,-500.0,0.00017534,2]
[389538826,1759705848228,-595.35,0.00017534,2]
[389538827,1759705848237,-722.19,0.00017534,2]
[389538828,1759705848247,-500.0,0.00017534,2]
[389538829,1759705848256,-500.0,0.00017534,2]
[389538830,1759705848266,-151.0,0.00017534,2]
[389538831,1759705848275,-500.0,0.00017534,2]
[389538832,1759705848284,-561.33,0.00017534,2]
[389538833,1759705848293,-500.0,0.00017534,2]
[389538834,1759705848303,-500.0,0.00017534,2]
[389538835,1759705848312,-500.0,0.00017534,2]
[389538836,1759705848324,-680.42,0.00017534,2]
[389538837,1759705848333,-151.0,0.00017534,2]
[389538838,1759705848342,-529.05719066,0.00017534,2]
[389538839,1759705848351,-1175.06,0.00017534,2]
[389538840,1759705848361,-500.0,0.00017534,2]